[Event "Titled Tuesday Blitz May 25 2021"]
[White "Do Valle Cardoso, Lucas"]
[Black "Savitski, Andrei"]
[WhiteFideId "2163144"]
[BlackFideId "13506161"]
[WhiteElo "2378"]
[BlackElo "2121"]
[Result "0-1"]
[Round "11"]
[TimeControl "180+1"]
[Date "2021.05.25"]
[WhiteClock "0:00:34"]
[BlackClock "0:00:14"]

1. e4 {[%clk 0:03:00]}  c5 {[%clk 0:02:58]} 2. Nf3 {[%clk 0:02:56]}  d6 {[%clk 0:02:58]} 3. d4 {[%clk 0:02:52]}  cxd4 {[%clk 0:02:59]} 4. Nxd4 {[%clk 0:02:52]}  Nf6 {[%clk 0:03:00]} 5. Nc3 {[%clk 0:02:52]}  Nc6 {[%clk 0:03:00]} 6. Bc4 {[%clk 0:02:51]}  e6 {[%clk 0:02:58]} 7. Bb3 {[%clk 0:02:51]}  Bd7 {[%clk 0:02:58]} 8. f4 {[%clk 0:02:50]}  a6 {[%clk 0:02:58]} 9. f5 {[%clk 0:02:50]}  e5 {[%clk 0:02:45]} 10. Nde2 {[%clk 0:02:45]}  h6 {[%clk 0:02:45]} 11. O-O {[%clk 0:02:34]}  Na5 {[%clk 0:02:44]} 12. Kh1 {[%clk 0:02:27]}  Nxb3 {[%clk 0:02:43]} 13. axb3 {[%clk 0:02:26]}  Bc6 {[%clk 0:02:44]} 14. Qd3 {[%clk 0:02:26]}  d5 {[%clk 0:02:07]} 15. exd5 {[%clk 0:02:24]}  Nxd5 {[%clk 0:02:08]} 16. f6 {[%clk 0:02:11]}  Nxf6 {[%clk 0:02:02]} 17. Qg3 {[%clk 0:02:11]}  Be7 {[%clk 0:01:45]} 18. Be3 {[%clk 0:01:59]}  Qd7 {[%clk 0:01:26]} 19. Rad1 {[%clk 0:01:58]}  Qg4 {[%clk 0:01:25]} 20. Qf2 {[%clk 0:01:39]}  O-O {[%clk 0:01:23]} 21. Ng3 {[%clk 0:01:37]}  Rfe8 {[%clk 0:01:15]} 22. Nf5 {[%clk 0:01:32]}  Bf8 {[%clk 0:01:14]} 23. Rd2 {[%clk 0:01:13]}  Rad8 {[%clk 0:01:11]} 24. Rfd1 {[%clk 0:01:12]}  Rxd2 {[%clk 0:01:11]} 25. Rxd2 {[%clk 0:01:13]}  Bxg2+ {[%clk 0:00:51]} 26. Qxg2 {[%clk 0:01:11]}  Qxf5 {[%clk 0:00:52]} 27. Bxh6 {[%clk 0:01:10]}  Ng4 {[%clk 0:00:53]} 28. Bg5 {[%clk 0:01:02]}  Qxg5 {[%clk 0:00:52]} 29. h3 {[%clk 0:01:03]}  Qh6 {[%clk 0:00:52]} 30. Rd7 {[%clk 0:00:59]}  Nf6 {[%clk 0:00:46]} 31. Rxb7 {[%clk 0:00:59]}  e4 {[%clk 0:00:44]} 32. Rb6 {[%clk 0:00:58]}  Qc1+ {[%clk 0:00:27]} 33. Kh2 {[%clk 0:00:54]}  Qxb2 {[%clk 0:00:27]} 34. Ne2 {[%clk 0:00:44]}  Qe5+ {[%clk 0:00:28]} 35. Kh1 {[%clk 0:00:44]}  Bc5 {[%clk 0:00:26]} 36. Rxa6 {[%clk 0:00:41]}  Nd5 {[%clk 0:00:21]} 37. Ra5 {[%clk 0:00:37]}  Bb6 {[%clk 0:00:18]} 38. Rb5 {[%clk 0:00:36]}  Qa1+ {[%clk 0:00:19]} 39. Kh2 {[%clk 0:00:36]}  Bc7+ {[%clk 0:00:19]} 40. Ng3 {[%clk 0:00:36]}  Ne3 {[%clk 0:00:16]} 41. Qf2 {[%clk 0:00:34]}  Nf1+ {[%clk 0:00:16]} 42. Kg2 {[%clk 0:00:33]}  Nxg3 {[%clk 0:00:16]} 43. Rb7 {[%clk 0:00:34]}  Qh1# {[%clk 0:00:14]} 0-1


[Site "https://www.chess.com"]

[Event "Titled Tuesday Blitz May 25 2021"]
[White "Dzhaparov, Medet"]
[Black "Manukyan, Artyom"]
[WhiteFideId "13803689"]
[BlackFideId "13305786"]
[WhiteElo "1702"]
[BlackElo "2034"]
[Result "1-0"]
[Round "11"]
[TimeControl "180+1"]
[Date "2021.05.25"]
[WhiteClock "0:00:07"]
[BlackClock "0:00:20"]

1. d4 {[%clk 0:03:00]}  d5 {[%clk 0:02:59]} 2. c4 {[%clk 0:02:55]}  e6 {[%clk 0:02:59]} 3. Nc3 {[%clk 0:02:54]}  Nf6 {[%clk 0:03:00]} 4. cxd5 {[%clk 0:02:53]}  exd5 {[%clk 0:03:00]} 5. Bg5 {[%clk 0:02:52]}  c6 {[%clk 0:03:01]} 6. e3 {[%clk 0:02:52]}  Qb6 {[%clk 0:03:01]} 7. Qb3 {[%clk 0:02:38]}  Qxb3 {[%clk 0:03:00]} 8. axb3 {[%clk 0:02:37]}  Ne4 {[%clk 0:02:56]} 9. Nxe4 {[%clk 0:02:27]}  dxe4 {[%clk 0:02:57]} 10. Bf4 {[%clk 0:02:26]}  a5 {[%clk 0:02:35]} 11. Ne2 {[%clk 0:02:23]}  Be6 {[%clk 0:02:32]} 12. Nc3 {[%clk 0:02:22]}  Bxb3 {[%clk 0:02:28]} 13. Nxe4 {[%clk 0:02:22]}  Bb4+ {[%clk 0:02:28]} 14. Nc3 {[%clk 0:02:22]}  Nd7 {[%clk 0:02:21]} 15. Be2 {[%clk 0:02:19]}  Nf6 {[%clk 0:02:16]} 16. O-O {[%clk 0:02:19]}  O-O {[%clk 0:02:08]} 17. Rfc1 {[%clk 0:02:11]}  a4 {[%clk 0:01:59]} 18. Nb1 {[%clk 0:01:57]}  Nd5 {[%clk 0:01:56]} 19. Bg3 {[%clk 0:01:56]}  Rfe8 {[%clk 0:01:53]} 20. Bf3 {[%clk 0:01:51]}  Rec8 {[%clk 0:01:44]} 21. e4 {[%clk 0:01:37]}  Nb6 {[%clk 0:01:38]} 22. Na3 {[%clk 0:01:31]}  Kf8 {[%clk 0:00:55]} 23. Bf4 {[%clk 0:01:20]}  Ke7 {[%clk 0:00:34]} 24. h4 {[%clk 0:01:18]}  h6 {[%clk 0:00:34]} 25. g4 {[%clk 0:01:16]}  Nd7 {[%clk 0:00:34]} 26. h5 {[%clk 0:01:08]}  Nf6 {[%clk 0:00:25]} 27. g5 {[%clk 0:01:05]}  hxg5 {[%clk 0:00:21]} 28. Bxg5 {[%clk 0:01:06]}  Kf8 {[%clk 0:00:22]} 29. Nc4 {[%clk 0:00:59]}  Re8 {[%clk 0:00:17]} 30. e5 {[%clk 0:00:56]}  Nd5 {[%clk 0:00:14]} 31. Bxd5 {[%clk 0:00:46]}  cxd5 {[%clk 0:00:15]} 32. Nb6 {[%clk 0:00:46]}  Ra6 {[%clk 0:00:11]} 33. Nd7+ {[%clk 0:00:43]}  Kg8 {[%clk 0:00:11]} 34. Rc7 {[%clk 0:00:42]}  b5 {[%clk 0:00:07]} 35. Rac1 {[%clk 0:00:38]}  Raa8 {[%clk 0:00:05]} 36. h6 {[%clk 0:00:34]}  gxh6 {[%clk 0:00:05]} 37. Nf6+ {[%clk 0:00:31]}  Kh8 {[%clk 0:00:05]} 38. Rxf7 {[%clk 0:00:30]}  Re7 {[%clk 0:00:02]} 39. Rxe7 {[%clk 0:00:28]}  Bxe7 {[%clk 0:00:03]} 40. Bxh6 {[%clk 0:00:28]}  Bxf6 {[%clk 0:00:03]} 41. exf6 {[%clk 0:00:28]}  Kh7 {[%clk 0:00:04]} 42. Bf4 {[%clk 0:00:25]}  Kg6 {[%clk 0:00:04]} 43. Be5 {[%clk 0:00:25]}  Ra7 {[%clk 0:00:05]} 44. f3 {[%clk 0:00:24]}  Bc4 {[%clk 0:00:05]} 45. Kf2 {[%clk 0:00:24]}  b4 {[%clk 0:00:06]} 46. Rg1+ {[%clk 0:00:24]}  Kh7 {[%clk 0:00:05]} 47. Rh1+ {[%clk 0:00:17]}  Kg6 {[%clk 0:00:05]} 48. Rg1+ {[%clk 0:00:17]}  Kh7 {[%clk 0:00:05]} 49. f4 {[%clk 0:00:16]}  a3 {[%clk 0:00:05]} 50. bxa3 {[%clk 0:00:16]}  bxa3 {[%clk 0:00:06]} 51. f5 {[%clk 0:00:13]}  Rf7 {[%clk 0:00:05]} 52. Rh1+ {[%clk 0:00:13]}  Kg8 {[%clk 0:00:05]} 53. Rg1+ {[%clk 0:00:13]}  Kh7 {[%clk 0:00:06]} 54. Rh1+ {[%clk 0:00:13]}  Kg8 {[%clk 0:00:06]} 55. Rg1+ {[%clk 0:00:13]}  Kf8 {[%clk 0:00:04]} 56. Ke3 {[%clk 0:00:13]}  a2 {[%clk 0:00:04]} 57. Kf4 {[%clk 0:00:13]}  Ke8 {[%clk 0:00:04]} 58. Rg8+ {[%clk 0:00:12]}  Kd7 {[%clk 0:00:05]} 59. Ra8 {[%clk 0:00:11]}  Rh7 {[%clk 0:00:04]} 60. Kg5 {[%clk 0:00:11]}  Bd3 {[%clk 0:00:01]} 61. Kg6 {[%clk 0:00:09]}  Rh1 {[%clk 0:00:01]} 62. f7 {[%clk 0:00:09]}  Rg1+ {[%clk 0:00:02]} 63. Kf6 {[%clk 0:00:08]}  Rf1 {[%clk 0:00:02]} 64. f8=Q {[%clk 0:00:07]}  Rxf5+ {[%clk 0:00:03]} 65. Kg7 {[%clk 0:00:08]}  Rxf8 {[%clk 0:00:03]} 66. Kxf8 {[%clk 0:00:09]}  Bb1 {[%clk 0:00:04]} 67. Kf7 {[%clk 0:00:08]}  Kc6 {[%clk 0:00:05]} 68. Ke6 {[%clk 0:00:08]}  Kb5 {[%clk 0:00:05]} 69. Kxd5 {[%clk 0:00:08]}  Kb4 {[%clk 0:00:06]} 70. Kd6 {[%clk 0:00:06]}  Kb3 {[%clk 0:00:06]} 71. d5 {[%clk 0:00:06]}  Be4 {[%clk 0:00:07]} 72. Kc5 {[%clk 0:00:06]}  Bf3 {[%clk 0:00:06]} 73. Ra7 {[%clk 0:00:06]}  Be4 {[%clk 0:00:06]} 74. d6 {[%clk 0:00:06]}  Bf5 {[%clk 0:00:06]} 75. Kc6 {[%clk 0:00:06]}  Be4+ {[%clk 0:00:06]} 76. Kc7 {[%clk 0:00:06]}  Bf5 {[%clk 0:00:07]} 77. d7 {[%clk 0:00:07]}  Bxd7 {[%clk 0:00:08]} 78. Kxd7 {[%clk 0:00:07]}  Kc2 {[%clk 0:00:08]} 79. Rxa2+ {[%clk 0:00:06]}  Kb1 {[%clk 0:00:09]} 80. Ra5 {[%clk 0:00:06]}  Kc2 {[%clk 0:00:10]} 81. Kd6 {[%clk 0:00:06]}  Kb3 {[%clk 0:00:11]} 82. Rc5 {[%clk 0:00:06]}  Kb4 {[%clk 0:00:12]} 83. Kd5 {[%clk 0:00:07]}  Kb3 {[%clk 0:00:13]} 84. Kd4 {[%clk 0:00:07]}  Ka2 {[%clk 0:00:14]} 85. Bf4 {[%clk 0:00:07]}  Kb3 {[%clk 0:00:15]} 86. Rc4 {[%clk 0:00:07]}  Kb2 {[%clk 0:00:15]} 87. Kd3 {[%clk 0:00:07]}  Kb1 {[%clk 0:00:16]} 88. Bd2 {[%clk 0:00:07]}  Kb2 {[%clk 0:00:17]} 89. Rb4+ {[%clk 0:00:07]}  Ka2 {[%clk 0:00:18]} 90. Rb8 {[%clk 0:00:07]}  Ka1 {[%clk 0:00:19]} 91. Kc2 {[%clk 0:00:07]}  Ka2 {[%clk 0:00:20]} 92. Ra8# {[%clk 0:00:07]} 1-0


[Site "https://www.chess.com"]

[Event "Titled Tuesday Blitz May 25 2021"]
[White "Eynullayev, Atilla"]
[Black "Morris-Suzuki, Sophie"]
[WhiteFideId "13413570"]
[BlackFideId "30922615"]
[WhiteElo "1997"]
[BlackElo "2356"]
[Result "1-0"]
[Round "11"]
[TimeControl "180+1"]
[Date "2021.05.25"]
[WhiteClock "0:00:24"]
[BlackClock "0:00:01"]

1. e4 {[%clk 0:03:00]}  c5 {[%clk 0:03:00]} 2. Nf3 {[%clk 0:02:59]}  e6 {[%clk 0:03:00]} 3. d4 {[%clk 0:02:58]}  cxd4 {[%clk 0:03:01]} 4. Nxd4 {[%clk 0:02:59]}  Nc6 {[%clk 0:03:01]} 5. Nc3 {[%clk 0:03:00]}  Qc7 {[%clk 0:03:01]} 6. Be3 {[%clk 0:03:00]}  Nf6 {[%clk 0:03:01]} 7. f3 {[%clk 0:03:00]}  a6 {[%clk 0:03:01]} 8. Qd2 {[%clk 0:03:00]}  Bb4 {[%clk 0:02:58]} 9. O-O-O {[%clk 0:02:59]}  Ne7 {[%clk 0:02:59]} 10. f4 {[%clk 0:02:43]}  Nxe4 {[%clk 0:02:57]} 11. Qd3 {[%clk 0:02:38]}  Nxc3 {[%clk 0:02:50]} 12. bxc3 {[%clk 0:02:38]}  Bxc3 {[%clk 0:02:45]} 13. Nb3 {[%clk 0:02:32]}  d5 {[%clk 0:02:42]} 14. Bc5 {[%clk 0:02:30]}  Bf6 {[%clk 0:02:34]} 15. Kb1 {[%clk 0:02:27]}  Bd7 {[%clk 0:02:32]} 16. g4 {[%clk 0:02:26]}  Qxf4 {[%clk 0:02:23]} 17. Rg1 {[%clk 0:02:17]}  Bb5 {[%clk 0:01:55]} 18. Qh3 {[%clk 0:02:07]}  Nc6 {[%clk 0:01:34]} 19. Bg2 {[%clk 0:01:36]}  Qe5 {[%clk 0:01:29]} 20. Nd4 {[%clk 0:01:34]}  Bc4 {[%clk 0:01:18]} 21. Rge1 {[%clk 0:01:33]}  Qc7 {[%clk 0:01:17]} 22. Nb3 {[%clk 0:01:26]}  b6 {[%clk 0:01:12]} 23. Ba3 {[%clk 0:01:26]}  Na5 {[%clk 0:01:05]} 24. g5 {[%clk 0:01:22]}  Be7 {[%clk 0:00:55]} 25. Rxe6 {[%clk 0:01:13]}  fxe6 {[%clk 0:00:45]} 26. Qxe6 {[%clk 0:01:14]}  Qd7 {[%clk 0:00:28]} 27. Qe5 {[%clk 0:01:11]}  Nc6 {[%clk 0:00:26]} 28. Qxg7 {[%clk 0:01:11]}  O-O-O {[%clk 0:00:25]} 29. Qh6 {[%clk 0:01:00]}  Bxa3 {[%clk 0:00:24]} 30. Bh3 {[%clk 0:01:00]}  Kb7 {[%clk 0:00:20]} 31. Bxd7 {[%clk 0:00:58]}  Rxd7 {[%clk 0:00:21]} 32. h4 {[%clk 0:00:56]}  Re8 {[%clk 0:00:19]} 33. h5 {[%clk 0:00:54]}  Re2 {[%clk 0:00:17]} 34. g6 {[%clk 0:00:49]}  hxg6 {[%clk 0:00:17]} 35. hxg6 {[%clk 0:00:45]}  Rg2 {[%clk 0:00:17]} 36. Qh3 {[%clk 0:00:43]}  Rg7 {[%clk 0:00:06]} 37. Qxg2 {[%clk 0:00:43]}  Ne7 {[%clk 0:00:06]} 38. Qg5 {[%clk 0:00:39]}  Rxg6 {[%clk 0:00:06]} 39. Qe5 {[%clk 0:00:38]}  Rc6 {[%clk 0:00:05]} 40. Rg1 {[%clk 0:00:37]}  a5 {[%clk 0:00:04]} 41. Rg7 {[%clk 0:00:36]}  Rc7 {[%clk 0:00:05]} 42. Nd4 {[%clk 0:00:35]}  Rd7 {[%clk 0:00:04]} 43. Nf5 {[%clk 0:00:34]}  Bd6 {[%clk 0:00:04]} 44. Nxd6+ {[%clk 0:00:33]}  Kc6 {[%clk 0:00:05]} 45. Rxe7 {[%clk 0:00:33]}  Rxd6 {[%clk 0:00:05]} 46. Re6 {[%clk 0:00:33]}  Rxe6 {[%clk 0:00:05]} 47. Qxe6+ {[%clk 0:00:34]}  Kc5 {[%clk 0:00:06]} 48. c3 {[%clk 0:00:33]}  b5 {[%clk 0:00:05]} 49. Qe3+ {[%clk 0:00:33]}  Kc6 {[%clk 0:00:05]} 50. Qd4 {[%clk 0:00:34]}  b4 {[%clk 0:00:06]} 51. Kb2 {[%clk 0:00:34]}  Kb5 {[%clk 0:00:05]} 52. cxb4 {[%clk 0:00:32]}  axb4 {[%clk 0:00:04]} 53. a3 {[%clk 0:00:33]}  bxa3+ {[%clk 0:00:04]} 54. Kxa3 {[%clk 0:00:32]}  Ka5 {[%clk 0:00:05]} 55. Qc5+ {[%clk 0:00:28]}  Ka6 {[%clk 0:00:05]} 56. Kb4 {[%clk 0:00:28]}  Ba2 {[%clk 0:00:02]} 57. Qc6+ {[%clk 0:00:26]}  Ka7 {[%clk 0:00:02]} 58. Kc5 {[%clk 0:00:26]}  Bc4 {[%clk 0:00:02]} 59. Kd6 {[%clk 0:00:26]}  Kb8 {[%clk 0:00:01]} 60. Qb6+ {[%clk 0:00:24]}  Ka8 {[%clk 0:00:01]} 61. Kc7 {[%clk 0:00:24]}  Bb3 {[%clk 0:00:01]} 62. Qb7# {[%clk 0:00:24]} 1-0


[Site "https://www.chess.com"]

[Event "Titled Tuesday Blitz May 25 2021"]
[White "Fernandez, Daniel Howard"]
[Black "Shapiro, David"]
[WhiteFideId "5801605"]
[BlackFideId "24133523"]
[WhiteElo "2468"]
[BlackElo "2261"]
[Result "1-0"]
[Round "11"]
[TimeControl "180+1"]
[Date "2021.05.25"]
[WhiteClock "0:00:04"]
[BlackClock "0:00:02"]

1. e4 {[%clk 0:03:00]}  e5 {[%clk 0:02:58]} 2. Nf3 {[%clk 0:03:00]}  Nf6 {[%clk 0:02:56]} 3. Nc3 {[%clk 0:02:59]}  Nc6 {[%clk 0:02:54]} 4. Be2 {[%clk 0:02:58]}  d5 {[%clk 0:02:51]} 5. exd5 {[%clk 0:02:56]}  Nxd5 {[%clk 0:02:50]} 6. O-O {[%clk 0:02:56]}  Nxc3 {[%clk 0:02:50]} 7. bxc3 {[%clk 0:02:57]}  Bd6 {[%clk 0:02:49]} 8. d4 {[%clk 0:02:55]}  exd4 {[%clk 0:02:47]} 9. cxd4 {[%clk 0:02:55]}  O-O {[%clk 0:02:43]} 10. Rb1 {[%clk 0:02:55]}  Rb8 {[%clk 0:02:41]} 11. Re1 {[%clk 0:02:55]}  Bf5 {[%clk 0:02:35]} 12. Bd3 {[%clk 0:02:48]}  Bxd3 {[%clk 0:02:33]} 13. Qxd3 {[%clk 0:02:49]}  Re8 {[%clk 0:02:32]} 14. Bg5 {[%clk 0:02:45]}  Qd7 {[%clk 0:02:30]} 15. Rxe8+ {[%clk 0:02:39]}  Rxe8 {[%clk 0:02:27]} 16. Rxb7 {[%clk 0:02:23]}  Nb4 {[%clk 0:02:27]} 17. Qd2 {[%clk 0:02:12]}  Qa4 {[%clk 0:02:17]} 18. c4 {[%clk 0:02:06]}  c5 {[%clk 0:01:39]} 19. dxc5 {[%clk 0:01:55]}  Bxc5 {[%clk 0:01:40]} 20. h3 {[%clk 0:01:55]}  Qxa2 {[%clk 0:01:32]} 21. Rxb4 {[%clk 0:01:55]}  Qxd2 {[%clk 0:01:11]} 22. Bxd2 {[%clk 0:01:56]}  Bxb4 {[%clk 0:01:10]} 23. Bxb4 {[%clk 0:01:57]}  Rb8 {[%clk 0:00:58]} 24. Bd6 {[%clk 0:01:57]}  Rb1+ {[%clk 0:00:52]} 25. Kh2 {[%clk 0:01:58]}  a5 {[%clk 0:00:52]} 26. c5 {[%clk 0:01:56]}  Rc1 {[%clk 0:00:52]} 27. Nd4 {[%clk 0:01:54]}  a4 {[%clk 0:00:49]} 28. c6 {[%clk 0:01:54]}  f6 {[%clk 0:00:45]} 29. c7 {[%clk 0:01:49]}  Kf7 {[%clk 0:00:45]} 30. f4 {[%clk 0:01:35]}  Ke8 {[%clk 0:00:42]} 31. Nb5 {[%clk 0:01:34]}  Kd7 {[%clk 0:00:39]} 32. Kg3 {[%clk 0:01:17]}  g6 {[%clk 0:00:15]} 33. Kf3 {[%clk 0:01:17]}  f5 {[%clk 0:00:14]} 34. Ke3 {[%clk 0:01:16]}  h6 {[%clk 0:00:13]} 35. Kd4 {[%clk 0:01:07]}  g5 {[%clk 0:00:12]} 36. Ke5 {[%clk 0:01:02]}  gxf4 {[%clk 0:00:11]} 37. Kxf4 {[%clk 0:01:02]}  Rc6 {[%clk 0:00:10]} 38. Kxf5 {[%clk 0:00:59]}  Ra6 {[%clk 0:00:08]} 39. Kf4 {[%clk 0:00:46]}  Ra5 {[%clk 0:00:03]} 40. Na3 {[%clk 0:00:28]}  Rd5 {[%clk 0:00:04]} 41. Be5 {[%clk 0:00:27]}  Rd3 {[%clk 0:00:04]} 42. Nc4 {[%clk 0:00:27]}  Rb3 {[%clk 0:00:02]} 43. Kf5 {[%clk 0:00:21]}  a3 {[%clk 0:00:03]} 44. g4 {[%clk 0:00:10]}  a2 {[%clk 0:00:03]} 45. h4 {[%clk 0:00:10]}  Rb4 {[%clk 0:00:02]} 46. Na3 {[%clk 0:00:04]} 1-0


[Site "https://www.chess.com"]

[Event "Titled Tuesday Blitz May 25 2021"]
[White "Filali, Razzouki Marouane"]
[Black "Maksimovic, Bojan"]
[WhiteFideId "9003720"]
[BlackFideId "14408120"]
[WhiteElo "2073"]
[BlackElo "2437"]
[Result "0-1"]
[Round "11"]
[TimeControl "180+1"]
[Date "2021.05.25"]
[WhiteClock "0:00:22"]
[BlackClock "0:00:05"]

1. e4 {[%clk 0:03:00]}  c5 {[%clk 0:03:00]} 2. Nf3 {[%clk 0:03:01]}  Nc6 {[%clk 0:03:00]} 3. b4 {[%clk 0:03:01]}  e5 {[%clk 0:02:30]} 4. b5 {[%clk 0:03:00]}  Nd4 {[%clk 0:02:31]} 5. Bc4 {[%clk 0:02:58]}  d6 {[%clk 0:02:25]} 6. d3 {[%clk 0:02:56]}  Nf6 {[%clk 0:02:22]} 7. Nbd2 {[%clk 0:02:55]}  Be7 {[%clk 0:02:18]} 8. c3 {[%clk 0:02:55]}  Nxf3+ {[%clk 0:02:08]} 9. Nxf3 {[%clk 0:02:56]}  O-O {[%clk 0:02:08]} 10. O-O {[%clk 0:02:52]}  Be6 {[%clk 0:02:08]} 11. Bxe6 {[%clk 0:02:48]}  fxe6 {[%clk 0:02:09]} 12. Qb3 {[%clk 0:02:48]}  Qd7 {[%clk 0:02:02]} 13. a4 {[%clk 0:02:48]}  Rae8 {[%clk 0:01:58]} 14. Be3 {[%clk 0:02:41]}  Kh8 {[%clk 0:01:57]} 15. a5 {[%clk 0:02:39]}  Nh5 {[%clk 0:01:56]} 16. d4 {[%clk 0:02:38]}  exd4 {[%clk 0:01:08]} 17. cxd4 {[%clk 0:02:38]}  cxd4 {[%clk 0:00:32]} 18. Nxd4 {[%clk 0:02:39]}  Bd8 {[%clk 0:00:29]} 19. a6 {[%clk 0:02:36]}  Bb6 {[%clk 0:00:28]} 20. axb7 {[%clk 0:02:30]}  Qxb7 {[%clk 0:00:29]} 21. Nxe6 {[%clk 0:02:28]}  Qf7 {[%clk 0:00:13]} 22. Bxb6 {[%clk 0:02:23]}  axb6 {[%clk 0:00:14]} 23. Nd4 {[%clk 0:02:23]}  Qxb3 {[%clk 0:00:15]} 24. Nxb3 {[%clk 0:02:24]}  Rxe4 {[%clk 0:00:15]} 25. Ra6 {[%clk 0:02:22]}  Rb4 {[%clk 0:00:15]} 26. Nd2 {[%clk 0:02:10]}  Rxb5 {[%clk 0:00:15]} 27. Nc4 {[%clk 0:02:11]}  d5 {[%clk 0:00:14]} 28. Rxb6 {[%clk 0:02:10]}  Rxb6 {[%clk 0:00:08]} 29. Nxb6 {[%clk 0:02:11]}  Rd8 {[%clk 0:00:08]} 30. Rd1 {[%clk 0:02:08]}  Nf6 {[%clk 0:00:08]} 31. f3 {[%clk 0:02:06]}  Kg8 {[%clk 0:00:09]} 32. Kf2 {[%clk 0:02:06]}  Kf7 {[%clk 0:00:10]} 33. Ke3 {[%clk 0:02:07]}  Ke6 {[%clk 0:00:10]} 34. Kd4 {[%clk 0:02:07]}  Rb8 {[%clk 0:00:10]} 35. Kc5 {[%clk 0:02:02]}  Rd8 {[%clk 0:00:07]} 36. Re1+ {[%clk 0:02:01]}  Kf5 {[%clk 0:00:07]} 37. Re7 {[%clk 0:01:57]}  d4 {[%clk 0:00:03]} 38. Rxg7 {[%clk 0:01:49]}  d3 {[%clk 0:00:03]} 39. Nc4 {[%clk 0:01:50]}  d2 {[%clk 0:00:02]} 40. Ne3+ {[%clk 0:01:46]}  Kf4 {[%clk 0:00:03]} 41. Nd1 {[%clk 0:01:46]}  Rc8+ {[%clk 0:00:03]} 42. Kd4 {[%clk 0:01:45]}  Rc1 {[%clk 0:00:04]} 43. g3+ {[%clk 0:00:39]}  Kxf3 {[%clk 0:00:04]} 44. Kd3 {[%clk 0:00:39]}  Rxd1 {[%clk 0:00:05]} 45. Rf7 {[%clk 0:00:36]}  Kg2 {[%clk 0:00:03]} 46. Rxf6 {[%clk 0:00:29]}  Rh1 {[%clk 0:00:03]} 47. Ke2 {[%clk 0:00:25]}  d1=Q+ {[%clk 0:00:03]} 48. Ke3 {[%clk 0:00:24]}  Re1+ {[%clk 0:00:04]} 49. Kf4 {[%clk 0:00:24]}  Qf3+ {[%clk 0:00:04]} 50. Kg5 {[%clk 0:00:24]}  Re5+ {[%clk 0:00:05]} 51. Rf5 {[%clk 0:00:21]}  Qxf5+ {[%clk 0:00:05]} 52. Kh6 {[%clk 0:00:22]}  Qg6# {[%clk 0:00:05]} 0-1


[Site "https://www.chess.com"]

[Event "Titled Tuesday Blitz May 25 2021"]
[White "Gevorgyan, Maria"]
[Black "Senthil Maran K"]
[WhiteFideId "13300270"]
[BlackFideId "25035681"]
[WhiteElo "2210"]
[BlackElo "2194"]
[Result "1-0"]
[Round "11"]
[TimeControl "180+1"]
[Date "2021.05.25"]
[WhiteClock "0:00:07"]
[BlackClock "0:00:08"]

1. e4 {[%clk 0:02:55]}  c6 {[%clk 0:02:59]} 2. d4 {[%clk 0:02:51]}  d5 {[%clk 0:03:00]} 3. Nc3 {[%clk 0:02:48]}  dxe4 {[%clk 0:03:00]} 4. Nxe4 {[%clk 0:02:49]}  Bf5 {[%clk 0:02:59]} 5. Ng3 {[%clk 0:02:48]}  Bg6 {[%clk 0:02:59]} 6. h4 {[%clk 0:02:47]}  h6 {[%clk 0:02:59]} 7. Nh3 {[%clk 0:02:44]}  e6 {[%clk 0:02:56]} 8. Nf4 {[%clk 0:02:40]}  Bh7 {[%clk 0:02:55]} 9. c3 {[%clk 0:02:37]}  Nf6 {[%clk 0:02:49]} 10. Bd3 {[%clk 0:02:36]}  Bxd3 {[%clk 0:02:49]} 11. Qxd3 {[%clk 0:02:34]}  Bd6 {[%clk 0:02:49]} 12. Ngh5 {[%clk 0:02:21]}  Bxf4 {[%clk 0:02:41]} 13. Nxg7+ {[%clk 0:02:04]}  Kf8 {[%clk 0:02:36]} 14. Nxe6+ {[%clk 0:02:04]}  fxe6 {[%clk 0:02:35]} 15. Bxf4 {[%clk 0:02:00]}  Qd5 {[%clk 0:02:32]} 16. O-O-O {[%clk 0:01:36]}  Nbd7 {[%clk 0:02:03]} 17. c4 {[%clk 0:01:31]}  Qf5 {[%clk 0:01:49]} 18. Qa3+ {[%clk 0:01:21]}  Kf7 {[%clk 0:01:46]} 19. g3 {[%clk 0:01:16]}  b5 {[%clk 0:01:29]} 20. Rhe1 {[%clk 0:00:59]}  bxc4 {[%clk 0:01:23]} 21. Re3 {[%clk 0:00:52]}  c5 {[%clk 0:00:22]} 22. Rde1 {[%clk 0:00:50]}  Rhe8 {[%clk 0:00:15]} 23. dxc5 {[%clk 0:00:45]}  Qxc5 {[%clk 0:00:14]} 24. Qa4 {[%clk 0:00:40]}  Nb6 {[%clk 0:00:12]} 25. Qc2 {[%clk 0:00:38]}  Nbd5 {[%clk 0:00:12]} 26. Re5 {[%clk 0:00:36]}  c3 {[%clk 0:00:11]} 27. bxc3 {[%clk 0:00:12]}  Qxc3 {[%clk 0:00:10]} 28. Qxc3 {[%clk 0:00:12]}  Nxc3 {[%clk 0:00:11]} 29. Bxh6 {[%clk 0:00:11]}  Ncd5 {[%clk 0:00:07]} 30. Bg5 {[%clk 0:00:11]}  Rec8+ {[%clk 0:00:06]} 31. Kb2 {[%clk 0:00:11]}  Rab8+ {[%clk 0:00:06]} 32. Ka1 {[%clk 0:00:11]}  Rc2 {[%clk 0:00:06]} 33. Rxe6 {[%clk 0:00:11]}  Rbb2 {[%clk 0:00:05]} 34. Ra6 {[%clk 0:00:11]}  Rb7 {[%clk 0:00:04]} 35. h5 {[%clk 0:00:09]}  Nxh5 {[%clk 0:00:04]} 36. Rh1 {[%clk 0:00:09]}  Nhf6 {[%clk 0:00:04]} 37. Bxf6 {[%clk 0:00:09]}  Nxf6 {[%clk 0:00:05]} 38. g4 {[%clk 0:00:09]}  Rbb2 {[%clk 0:00:02]} 39. g5 {[%clk 0:00:09]}  Ne4 {[%clk 0:00:02]} 40. Rxa7+ {[%clk 0:00:09]}  Kg6 {[%clk 0:00:02]} 41. f4 {[%clk 0:00:09]}  Ng3 {[%clk 0:00:02]} 42. Ra6+ {[%clk 0:00:09]}  Kf5 {[%clk 0:00:03]} 43. Rg1 {[%clk 0:00:09]}  Kxf4 {[%clk 0:00:03]} 44. g6 {[%clk 0:00:10]}  Nf5 {[%clk 0:00:03]} 45. g7 {[%clk 0:00:09]}  Rg2 {[%clk 0:00:03]} 46. Rf1+ {[%clk 0:00:08]}  Rbf2 {[%clk 0:00:03]} 47. Rxf2+ {[%clk 0:00:08]}  Rxf2 {[%clk 0:00:04]} 48. g8=Q {[%clk 0:00:08]}  Ne3 {[%clk 0:00:04]} 49. Qf7+ {[%clk 0:00:08]}  Kg3 {[%clk 0:00:04]} 50. Qxf2+ {[%clk 0:00:09]}  Kxf2 {[%clk 0:00:05]} 51. Rf6+ {[%clk 0:00:09]}  Kg3 {[%clk 0:00:04]} 52. a4 {[%clk 0:00:09]}  Nd5 {[%clk 0:00:04]} 53. Rd6 {[%clk 0:00:08]}  Nb4 {[%clk 0:00:04]} 54. a5 {[%clk 0:00:09]}  Kf4 {[%clk 0:00:04]} 55. Kb2 {[%clk 0:00:09]}  Ke5 {[%clk 0:00:05]} 56. Rb6 {[%clk 0:00:09]}  Nd5 {[%clk 0:00:05]} 57. Rb5 {[%clk 0:00:09]}  Kd6 {[%clk 0:00:05]} 58. Kb3 {[%clk 0:00:09]}  Kc6 {[%clk 0:00:06]} 59. Rb8 {[%clk 0:00:06]}  Nc7 {[%clk 0:00:05]} 60. Ka4 {[%clk 0:00:05]}  Na6 {[%clk 0:00:06]} 61. Rb6+ {[%clk 0:00:06]}  Kc7 {[%clk 0:00:06]} 62. Rxa6 {[%clk 0:00:07]}  Kb7 {[%clk 0:00:06]} 63. Rb6+ {[%clk 0:00:07]}  Ka7 {[%clk 0:00:07]} 64. Rb1 {[%clk 0:00:08]}  Ka6 {[%clk 0:00:08]} 65. Kb4 {[%clk 0:00:07]} 1-0


[Site "https://www.chess.com"]